Cogmind - Beta 13 @@@ ROGUE MODE // 2024.03.31 @ 10:44:39 Player: Air Result: Destroyed self via exploding Nuclear Reactor Performance ------------- Evolutions (0) 0 Regions Visited (1) 200 Robots Destroyed (23) 115 Value Destroyed (387) 387 Prototype IDs (3) 60 Alien Tech Used (0) 0 Bonus (0) 0 TOTAL SCORE: 762 Bonus ------- None Cogmind --------- Core Integrity 0/250 Matter 290/300 Energy 57/250 System Corruption 1% Temperature Cool (0) Movement Walking (120) Location -10/Materials Parts ------- > --- POWER (1) -------- Ion Engine > --- PROPULSION (2) --- Aluminum Leg Aluminum Leg > --- UTILITY (2) ------ Heat Sink > --- WEAPON (2) ------- (None) > --- INVENTORY (5) ---- Aluminum Leg High-capacity Matter Pod (200) Peak State ------------ > --- POWER ------------ Ion Engine > --- PROPULSION ------- Aluminum Leg Aluminum Leg > --- UTILITY ---------- Terrain Scanner Terrain Scan Processor > --- WEAPON ----------- Small Laser Grenade Launcher > --- INVENTORY -------- Light Ion Engine High-capacity Matter Pod ECM Suite [Rating: 8] Favorites ----------- Power Light Ion Engine Engine Light Ion Engine Propulsion Aluminum Leg Leg Aluminum Leg Wheel Wheel Utility Terrain Scanner Device Terrain Scanner Storage Medium Matter Pod Processor Terrain Scan Processor Protection Core Shielding Weapon Light Assault Rifle Energy Gun Small Laser Ballistic Gun Light Assault Rifle Launcher Grenade Launcher Special Weapon Welding Torch Special Melee Weapon Datajack Build | -11 -10 ------- Run | Yrd Mat Slots Evolved . | . . Power . | . . Propulsion . | . . Utility . | . . Weapon . | . . Parts Attached 30 | 6 24 Power 4 | 2 2 Engine 4 | 2 2 Core . | . . Reactor . | . . Propulsion 8 | 2 6 Treads . | . . Leg 4 | 2 2 Wheel 4 | . 4 Hover . | . . Flight . | . . Utility 8 | 1 7 Device 3 | . 3 Storage 3 | 1 2 Processor 1 | . 1 Hackware . | . . Protection 1 | . 1 Artifact . | . . Weapon 10 | 1 9 Energy Gun 2 | . 2 Energy Cannon . | . . Ballistic Gun 1 | 1 . Ballistic Cannon . | . . Launcher 2 | . 2 Special Weapon 3 | . 3 Impact Weapon . | . . Slashing Weapon . | . . Piercing Weapon . | . . Special Melee Weapon 2 | . 2 Unidentified Prototypes . | . . Parts Lost 10 | . 10 Power 1 | . 1 Propulsion 2 | . 2 Utility 3 | . 3 Weapon 4 | . 4 Highest Loss Streak 6 | . 6 To Critical Strikes . | . . Average Slot Usage (%) 86 | . 86 Engine 12 | . 12 Leg 12 | . 12 Wheel 12 | . 12 Device 13 | . 13 Storage 4 | . 4 Processor 3 | . 3 Protection 4 | . 4 Energy Gun 3 | . 3 Ballistic Gun 2 | . 2 Launcher 7 | . 7 Special Weapon 4 | . 4 Special Melee Weapon 2 | . 2 Naked Turns 8 | . 8 Heaviest Build 14 | 8 14 Greatest Support 26 | 20 26 Greatest Overweight (x) 1 | 1 1 Average Overweight (x) . | . . Largest Inventory Capacity 5 | 5 5 Average Capacity 5 | 5 5 Most Carried 5 | 2 5 Average Carried 1 | . 2 Final Capacity 5 | 5 5 Final Carried 2 | 1 2 Class Distribution -------------------- 90% | Mutant 9% | Scavenger-Mutant Dominant Class ---------------- Mutant | -10/Materials Resources | -11 -10 ----------- Run | Yrd Mat Matter Collected 632 | 281 351 Remotely . | . . Salvage Created 638 | 93 545 Parts 51 | 9 42 Haulers Intercepted 1 | . 1 Recyclers Shooed 2 | . 2 Parts Field Recycled . | . . Retrieved Matter . | . . Parts Self-Destructed . | . . Prevented . | . . Kills | -11 -10 ------- Run | Yrd Mat Combat Hostiles Destroyed 9 | 1 8 Melee 1 | . 1 Guns 6 | 1 5 AOE 2 | . 2 Classes Destroyed 8 | 3 5 Worker 4 | 1 3 Builder 5 | . 5 Tunneler 1 | 1 . Hauler 1 | . 1 Recycler 1 | . 1 Watcher 2 | . 2 Swarmer 2 | . 2 Grunt 7 | 1 6 Best Kill Streak 4 | 2 4 Combat Bots Only 2 | 1 2 Max Kills in Single Turn 2 | 1 2 Gunslinging . | . . Exploded 1 | . 1 Melee 1 | . 1 Uniques/NPCs Destroyed . | . . Combat | -11 -10 -------- Run | Yrd Mat Hostile Shots Fired 100 | 3 97 Missed 28 | . 28 Damage Taken 1118 | 36 1082 Core 358 | . 358 Absorbed by Shields . | . . Redirected to Shielding 18 | . 18 Core Remaining (%) 100 | 100 . Volleys Fired 105 | 14 91 Largest 2 | 1 2 Hottest 70 | 20 70 Shots Fired 106 | 14 92 Gun 81 | 14 67 Cannon . | . . Launcher 8 | . 8 Special 17 | . 17 Kinetic 39 | 14 25 Thermal 59 | . 59 Explosive 8 | . 8 Electromagnetic . | . . Robot Hit Streak 7 | 3 7 Robot Miss Streak 2 | 2 2 Penetration Max . | . . Secondary Targets . | . . Shots Hit Robots 57 | 8 49 Core Hits 42 | 6 36 Critical Kills . | . . Critical Parts Destroyed . | . . Critical Strikes . | . . Melee Attacks 4 | . 4 Impact . | . . Slashing . | . . Piercing . | . . Sneak Attacks 3 | . 3 Combat Hostiles . | . . Follow-up Attacks . | . . Damage Inflicted 964 | 62 902 Guns 483 | 62 421 Cannons . | . . Explosions 434 | . 434 Melee . | . . Ramming 42 | . 42 Kinetic 200 | 62 138 Thermal 288 | . 288 Explosive 434 | . 434 Electromagnetic . | . . Impact . | . . Slashing . | . . Piercing . | . . Highest Corruption 1 | . 1 Average Corruption 1 | . 1 Corruption Purged . | . . Corruption Blocked . | . . Overload Shots . | . . Overflow Damage 97 | . 97 Projectiles . | . . Explosions 97 | . 97 Melee . | . . Knockbacks 1 | . 1 Impact 1 | . 1 Kinetic . | . . Secondary . | . . Self-Inflicted Damage 290 | . 290 Shots 4 | . 4 Rammed 17 | . 17 Targets Rammed 17 | . 17 Kicked . | . . Crushed . | . . Highest Temperature 69 | 6 69 Average Temperature 29 | 6 31 Received Heat Transfer 399 | 18 381 Siege Activations . | . . Robots Corrupted . | . . Combat Hostiles . | . . Parts Fried . | . . Impact Corruptions . | . . Robots Melted . | . . Combat Hostiles . | . . Parts Melted 2 | . 2 Heat Transferred 700 | . 700 Parts Sabotaged . | . . Parts Stolen . | . . Parts Stripped . | . . Power Chain Reactions . | . . Alert | -11 -10 ------- Run | Yrd Mat Peak Influence 306 | 30 306 Initial 19 | . 19 Average 119 | 13 175 Maximum Alert Level 1 | . 1 Low Security (%) 75 | 100 61 Level 1 24 | . 38 Level 2 . | . . Level 3 . | . . Level 4 . | . . Level 5 . | . . High Security . | . . Max Security . | . . Squads Dispatched 2 | . 2 Investigation 1 | . 1 Extermination . | . . Reinforcement 1 | . 1 Assault . | . . Garrison . | . . Intercept . | . . Searches Triggered . | . . Construction Impeded . | . . Haulers Reinforced . | . . Active Scanning Responses . | . . Cargo Convoy Interrupts . | . . Stealth | -11 -10 --------- Run | Yrd Mat Distress Signals . | . . Communications Jammed . | . . Distress Signals . | . . Times Spotted 15 | 1 14 Peak Tracking Total 4 | 1 4 Tactical Retreats 1 | . 1 Traps | -11 -10 ------- Run | Yrd Mat Traps Triggered 1 | . 1 Indirectly . | . . Trap Hack Attempts . | . . Triggered . | . . Disarmed . | . . Reprogrammed . | . . Reused . | . . Traps Extracted . | . . Installed . | . . Triggered . | . . Machines | -11 -10 ---------- Run | Yrd Mat Machines Disabled 4 | . 4 Max in Single Turn 2 | . 2 Machines Repaired . | . . Machines Dismantled . | . . Machines Sabotaged . | . . Overloaded Fab Kills . | . . Hacking | -11 -10 --------- Run | Yrd Mat Machines Accessed 3 | . 3 Terminals 2 | . 2 Fabricators . | . . Repair Stations . | . . Recycling Units 1 | . 1 Scanalyzers . | . . Garrison Access . | . . Total Hacks 10 | . 10 Successful 7 | . 7 Failed 3 | . 3 Catastrophic . | . . Database Lockouts . | . . Manual . | . . Terminals 8 | . 8 Fabricators . | . . Repair Stations . | . . Recycling Units 2 | . 2 Scanalyzers . | . . Garrison Access . | . . Terminal Hacks 5 | . 5 Record 2 | . 2 Prototype ID Bank 1 | . 1 Patrol Status 1 | . 1 Investigation Status 1 | . 1 Fabricator Hacks . | . . Repair Station Hacks . | . . Recycling Unit Hacks 2 | . 2 Report Inventory 1 | . 1 Retrieve Components 1 | . 1 Scanalyzer . | . . Garrison Access Hacks . | . . Unauthorized Hacks . | . . Terminals . | . . Fabricators . | . . Repair Stations . | . . Recycling Units . | . . Scanalyzers . | . . Garrison Access . | . . Data Cores Recovered . | . . Used . | . . Hacking Detections 2 | . 2 Full Trace Events 1 | . 1 Feedback Events . | . . Feedback Blocked . | . . Robot Schematics Acquired . | . . Robots Built . | . . Authchips . | . . Time . | . . Total Robot Build Rating . | . . Part Schematics Acquired . | . . Parts Built . | . . Authchips . | . . Time . | . . Total Part Build Rating . | . . Parts Repaired . | . . Time . | . . Parts Recycled . | . . Recycled Matter . | . . Retrieved Matter . | . . Retrieved Components 10 | . 10 Parts Scanalyzed . | . . Part Schematics Acquired . | . . Parts Damaged . | . . Bothacking | -11 -10 ------------ Run | Yrd Mat Used RIF Installer . | . . Robots Hacked 3 | . 3 Non-combat 3 | . 3 Combat . | . . Robot Hacks Applied 4 | . 4 parse_system 2 | . 2 no_distress 1 | . 1 find_recycling 1 | . 1 Relay Couplers Released . | . . Fabnet Peak Effective % . | . . Robots Rewired . | . . Allies Hacked . | . . Hacks Repelled . | . . Allies | -11 -10 -------- Run | Yrd Mat Total Allies . | . . Largest Group . | . . Highest-Rated Group . | . . Highest-Rated Ally . | . . Total Orders . | . . Ally Attacks . | . . Total Damage . | . . Kills . | . . Allies Corrupted . | . . Allies Melted . | . . Intel | -11 -10 ------- Run | Yrd Mat Robot Analysis Total . | . . Derelict Logs Recovered . | . . Drone Launches . | . . Drone Recoveries . | . . Exploration | -11 -10 ------------- Run | Yrd Mat Turns Passed 942 | 325 617 Spaces Moved 511 | 159 352 Core 53 | 51 2 Treads . | . . Legs 210 | 108 102 Wheels 248 | . 248 Hover . | . . Flight . | . . Fastest Speed 50 | 50 50 Average Speed 98 | 103 97 Slowest Speed 190 | 120 190 Overloaded Moves . | . . Propulsion Burnouts . | . . Robots Hopped . | . . Cave-ins Triggered . | . . Exploration Rate (%) 23 | 9 38 Regions Visited 1 Branch Regions . Pre-discovered Areas . | . . Known Exits Taken . | . . Unknown Exits Taken 1 | 1 . Scrap Searched . | . . Spaces Dug . | . . Terrain Destroyed 44 | . 44 Melee . | . . Projectile . | . . AOE 44 | . 44 Terrain Rammed . | . . Walls Destroyed . | . . Machines Disabled . | . . Actions | -11 -10 --------- Run | Yrd Mat Total 842 | 308 534 Wait 136 | 122 14 Move 510 | 158 352 Hop . | . . Pick Up 28 | 7 21 Fast Attach . | . . Attach 17 | 5 12 Detach 1 | . 1 Swap 13 | 1 12 Drop 11 | 1 10 Fire 105 | 14 91 Melee 4 | . 4 Ram 17 | . 17 Kick . | . . Crush . | . . Escape Stasis . | . . Rewire . | . . Trap . | . . Miscellaneous . | . . Route ------- -11/Scrapyard -10/Materials (discovered 1 exit: [*Mat]) History --------- Turn | Location | Event 2 | -11/Scrapyard | Met Revision 17 170 | -11/Scrapyard | Discovered new exit (range 8) 326 | -11/Scrapyard | Entered Materials 327 | -10/Materials | Build established: Mutant 472 | -10/Materials | Discovered new exit (range 15) 858 | -10/Materials | Core integrity fell below 50% 868 | -10/Materials | Core integrity fell below 20% 894 | -10/Materials | Lost 6 parts (1p2n2u1w) 943 | -10/Materials | Destroyed self via exploding Nuclear Reactor Last Messages --------------- 00895_ Acquired 40 matter. 00899_ K-01 Serf cleans the Nuclear Reactor. To regain energy, simply wait via the mouse wheel, '.', or KP5. Also make sure your per-turn energy generation is a net positive, and consider deactivating power-draining parts if not. 00902_ K-01 Serf collects debris. 00914_ Acquired 5 matter. 00918_ Acquired Aluminum Leg. 00921_ Acquired Heat Sink. 00922_ K-01 Serf cleans the Nuclear Reactor. 00943_ Nuclear Reactor explodes. 00943_ ECM Suite destroyed. 00943_ Destroyed ECM Suite. 00943_ Sml. Laser destroyed. 00943_ Destroyed Sml. Laser. 00943_ Nuclear Reactor explodes. [Achievement: First Step to Greatness] Map ----- +----------------------------------------------------+ | ??#????#" """ ### #####+##+####="Y" # | | ?#??####" """ #?# ## ##*""" # | | ?#?###?#T #?# ## ######## | | ####??##" """ #?# ## / #??????? | | ##??###" """ #?# ## / #??????? | | ###?#?#" """ #?# ############ ?#???# | | ##?#?## #?# #???? ???? ????#?#? | | #?#####+###+###### ## ???????????#???# | | ##?##?# #???? ?? ??? ???#?? | | ##??### ######## #? ?"? ?? ?????#?#? | | ####### #?#?#??# #? ??"????????##?#? | | #######+## ######## #????" ??? ???#???? | | # # # ## #??? ????? ?? #???? | | # """ # # ## #? ?????????? #???? | | """ # # ## #?###+##???? #???? | | """ # # ## ### ##### ##??? | | # # + #???? | | # " # # ###### #???? | | T # + #?#??# ! ########???? | | " # # #????######???#??????? | | # # #############????????? | | ####### # # %%% #????????#?? | | # # #??????????? | | |== ^ # # #???????#??? | | ! ! = ####### #????????#?# | | ### ###### #?#???# @ #?#???#????? | | ## ##??#?# ####??# #??????????? | | #####??##?# #??#??# r #?#????????? | | ??####???## ##????# #????#?#?#?? | | ### ### ##########+#####??#???????? | | ??# # #???????????? | | ??# #???????????? | | ??### # #???????????? | | ????###### ###############???????????? | | #???#????#######?????????????????????????? | | #???????##?????#???? ?"??????????????????? | | ????????????????????????????#????????????? | | ???????????????????? ????????????????????? | | ?????????????????????????????????????????? | | ????????????#???#????????????????????????? | | ?????????????????????????????????????????? | | ?????????????????????????????????????????? | | ?????????????????????????????????????????? | | ??????????????????????? ?????????????????? | | ??????????????????? ?????????????????????? | | ?????????????????????????????????????????? | | ?????????????????????????????????????????? | | ?????????????????????????????????????????? | | ?????????????????????????????????????????? | | ?????????????????????????????????????????? | +----------------------------------------------------+ Best States ------------- Heat Dissipation 35 Energy Generation 10 Energy Capacity 250 Matter Stores 500 Matter Capacity 500 Sight Range 16 Terrain Scan Range 14 Terrain Scan Density 85 ECM Strength 1 Core Shielding 20 Evasion (%) 55 Item Schematics ----------------- None Robot Schematics ------------------ None Fabricated ------------ Nothing Alien Tech Used ----------------- None Achievements -------------- First Step to Greatness Fist Fight Loot Pinata One Hack Too Far Uninvited Guest Challenges ------------ None Game ------ Seed RocketRestorationAutogun Manual? 0 Play Time 00:26:09 Cumulative 0.4 hours Start 2024.03.31 @ 10:16:48 End 2024.03.31 @ 10:44:39 Sessions 1 Manual Loads 0 Difficulty Rogue Special Mode None Game No. 1 Rogue 1 Adventurer 0 Explorer 0 Win Type - Total 0 Types 0/0/0/0/0/0/0/0/0 Lore% 0 Gallery% 2 Achievement% 1 Wizard Run 0 Options --------- Layout 1 ASCII 0 Keyboard 0 Movement Mouse Keybinds 0 Fullscreen 2 Font 24/Proggy Map View 50x35 Zoom Use 0% Tactical HUD 1 Map Filters NONE Filters NONE Steam 1 RUN: cfd1a953-b5f4-41fb-8d27-a888cd4cb536